Workbook

Sheet 1200
A1: RECONSTRUCTION OF FRISGEWAAGT INTERNAL ROADS AND STORMWATER PHASE 1 - WARD 6
A2: SCHEDULE A : GENERAL
A3: SECTION 1200
A4: GENERAL REQUIREMENTS AND PROVISIONS
A6: ITEM | C6: DESCRIPTION | D6: UNIT | E6: QTY | F6: RATE | G6: AMOUNT
B8: GENERAL REQUIREMENTS AND PROVISIONS
A10: B12.01 | B10: Training:
B12: (a) | C12: Accredited Engineering and Technical skills Training | D12: Prov Sum | E12: 1.00 | F12: 100,000.00 | G12: =E12*F12 -> 100,000.00
B14: (c) | C14: Training venue | D14: Prov Sum | E14: 1.00 | F14: 15,000.00 | G14: =E14*F14 -> 15,000.00
B16: (d) | C16: Remuneration (stipent of students undergoing engineering
C17: and technical skills training) | D17: Prov Sum | E17: 1.00 | F17: 65,000.00 | G17: =E17*F17 -> 65,000.00
B19: (e) | C19: Contractor's handling costs, profit and all other charges in
C20: in respect of Subitems 12.01(a)
C22: (i) Engineering & Technical skills | D22: % | E22: =F12 -> 100,000.00 | G22: =E22*F22 -> 0
B24: (h) | C24: Transport and accommodation of students during training where
C25: it is not possible to undertake the training in close proximity
C26: to the site. | D26: Prov Sum | E26: 1.00 | F26: 20,000.00 | G26: =E26*F26 -> 20,000.00
B28: (i) | C28: Contractor's handling costs, profit and all other charges in
C29: respect of subitem (h) | D29: % | E29: =F26 -> 20,000.00 | G29: =E29*F29 -> 0
A31: B12.02 | B31: Provision for Special Services - Accredited Professionals
B32: to be nominated and appointed by the Employer.
B34: (a) | C34: Geo-Technical Engineering and Quality Control | D34: Prov Sum | E34: 1.00 | F34: 200,000.00 | G34: =E34*F34 -> 200,000.00
B36: (b) | C36: Engineering Survey, setting out and levels control | D36: Prov Sum | E36: 1.00 | F36: 100,000.00 | G36: =E36*F36 -> 100,000.00
B38: (c) | C38: Handling cost and Profit in respect of subitem B12.02 (a) and (b) | D38: % | E38: =F34+F36 -> 300,000.00 | G38: =E38*F38 -> 0
A40: B12.03 | B40: Compliance with OHS Act and Regulations (Including the
B41: Construction Regulations 2014)
B43: (a) | C43: Fixed obligations for the duration of the contract | D43: Lump Sum | E43: 1.00 | G43: =E43*F43 -> 0
B45: (b) | C45: Time related obligations for the duration of the contract | D45: Month | E45: 8.00 | G45: =E45*F45 -> 0
A47: B12.04 | B47: Contractors' initial obligations in respect of Heavy Duty
B48: Personal Protective Equpment (PPE). All PPE must be
B49: SABS or any recognized authorities' approved. Colours
B50: branding and logos to be finalized with the Employer
B52: (a) | C52: Conti two piece work suit with aluminium zips on the jacket
C53: and trousers.
C54: (i). Triple stitched trousers in the back, leg and front areas
C55: with elastic waist band, two side pockets and one at the
C56: back; jacket with two side pockets and pouched breast
C57: pocket with reinforcing triple stitching. | D57: Pair | E57: 20.00 | G57: =E57*F57 -> 0
B59: (b) | C59: Construction safety boots (frams or profit manufacturer) | D59: Pair | E59: 20.00 | G59: =E59*F59 -> 0
B61: (c) | C61: Contruction safety helmet or hard hat | D61: No | E61: 20.00 | G61: =E61*F61 -> 0
B63: (d) | C63: Showa blue pvc coated work gloves (mfr. part no: SH06604)
C64: or CUT5 leather gloves dotted (code:55MJAXJSI) or impact
C65: gloves (code:5ZLSTPV) or any Dromex approved gloves. | D65: Pair | E65: 20.00 | G65: =E65*F65 -> 0
B67: (e) | C67: 3M4800 anti mist safety goggles with clear lenses (mfr. part
C68: no: 7134704) or similar approved | D68: Pair | E68: 20.00 | G68: =E68*F68 -> 0
B70: (f) | C70: Value reflective vest with zip and id pocket from Protekta
C71: Safety gear. | D71: Pair | E71: 20.00 | G71: =E71*F71 -> 0
B73: (g) | C73: Orange solid relective BiB with reflective cross at back and
C74: stripe on the front. | D74: Pair | E74: 20.00 | G74: =E74*F74 -> 0
A76: B12.05 | B76: Submission of the Health and Safety File
B77: The Contractor must submit to the Employer a health and safety
B78: plan for approval by the Safety Officer within 14 days of
B79: appointment and before commencing with any works on site. | D79: Item | E79: 1.00 | G79: =E79*F79 -> 0
A82: 1200 | C82: TOTAL CARRIED FORWARD | G82: =SUM(G12:G79) -> 500,000.00
A85: ITEM | C85: DESCRIPTION | D85: UNIT | E85: QTY | F85: RATE | G85: AMOUNT
C86: TOTAL BROUGHT FORWARD | G86: =G82 -> 500,000.00
A88: B12.06 | B88: Occupational Health and Safety Management
B89: The Contractor must maintain a full time OHS Management on
B90: site as per OHS Act and Regulations including Construction
B91: Regulations
B93: (a) | C93: Health and Safety Officer
C94: The Health and Safety Officer must be in a possession of a
C95: minimum qualifications for construction recognized in the Built
C96: and Environment field in construction. (NOSA, SAMTRAC, etc) | D96: Month | E96: =E45 -> 8.00 | G96: =E96*F96 -> 0
A98: B12.07 | B98: Compliance with COVID-19 Regulations and Specifications
B100: (a) | C100: Fixed obligations for the duration of the contract | D100: Lump Sum | E100: 1.00 | G100: =E100*F100 -> 0
B102: (b) | C102: Time related obligations for the duration of the contract | D102: Month | E102: =E96 -> 8.00 | G102: =E102*F102 -> 0
A104: B12.08 | B104: Contractors' initial obligations in respect of covid-19
B105: pandemic equipments.
B107: (a) | C107: Triple cloth face mask manufactured locally from the affected | D107: No | E107: 20.00 | G107: =E107*F107 -> 0
C108: communities or in the jurisdiction of the Employer.
B110: (b) | C110: Sanitization stations on site or sanitizing equipments, all
C111: sanitizers to be SABS Approved. | D111: =D107 -> No | E111: 2.00 | G111: =E111*F111 -> 0
B113: (c) | C113: Handwashing station in the site camp | D113: =D111 -> No | E113: 2.00 | G113: =E113*F113 -> 0
B115: (d) | C115: Digital temperature testing hand machine (SABS Approved) | D115: =D113 -> No | E115: 2.00 | G115: =E115*F115 -> 0
B117: (e) | C117: Records and register files for labourers, visitors and
C118: management team (Employer, Consultant and Contractor). | D118: =D115 -> No | E118: 2.00 | G118: =E118*F118 -> 0
A120: B12.10 | B120: Compliance with (Eco) Environmental Management Plan
B122: (a) | C122: Fixed obligations for the duration of the contract | D122: Lump Sum | E122: 1.00 | G122: =E122*F122 -> 0
B124: (b) | C124: Time related obligations for the duration of the contract | D124: Month | E124: =E102 -> 8.00 | G124: =E124*F124 -> 0
A126: B12.11 | B126: Health and Safety Agent
B128: (a) | C128: Monthly health and safety site audits to be conducted and
C129: OHS Plan reviewed by an approved Professional Service
C130: Provider and to comply with the OHS Act and Regulations
C131: (including Construction Regulations 2014) to be approved by
C132: the Employer's Agent or Safety Officer, SACPCMP registered
C133: and to be appointed by the Consultant. | D133: Lump Sum | E133: 1.00 | F133: 150,000.00 | G133: =E133*F133 -> 150,000.00
B135: (b) | C135: Contractor's handling costs, profit and all other charges in
C136: respect of Subitem B12,11(a) | D136: % | E136: =F133 -> 150,000.00 | G136: =E136*F136 -> 0
A138: B12.12 | B138: (Eco) Environmental Management Plan and Environmental
B139: Compliance Audits for Engineers
B141: (a) | C141: Monthly Environmental Audits to be conducted by an
C142: approved Professional Service Providerand to comply with
C143: Environmental Act and to be approved by the Employer's Agent
C144: or Envirnmental Officer. | D144: Prov sum | E144: 1.00 | F144: 110,000.00 | G144: =E144*F144 -> 110,000.00
B146: (b) | C146: Contractor's handling costs, profit and all other charges in
C147: respect of Subitem B12,12(a) | D147: % | E147: =F144 -> 110,000.00 | G147: =E147*F147 -> 0
A149: B12.13 | B149: Mine Health and Safety
B150: The Contractor must obtain all permits from the DME before
B151: openning up any borrowpits. All opened borrowpits must be
B152: rehabilitated on completion of the project for community
B153: safety.
A155: LI | B155: (a) | C155: Borrowpit fencing including double gate | D155: m | E155: 400.00 | G155: =E155*F155 -> 0
A157: LI | B157: (b) | C157: Provision of warning signs at the borrowpit | D157: No | E157: 10.00 | G157: =E157*F157 -> 0
B159: (c) | C159: Borrowpit rehabilitation. | D159: Lump Sum | E159: 1.00 | G159: =E159*F159 -> 0
A166: 1200 | C166: TOTAL CARRIED FORWARD | G166: =SUM(G86:G159) -> 760,000.00
A169: ITEM | C169: DESCRIPTION | D169: UNIT | E169: QTY | F169: RATE | G169: AMOUNT
C170: TOTAL BROUGHT FORWARD | G170: =G166 -> 760,000.00
A172: B12.14 | B172: Remuneration of the Project Liaison Officer and members
B173: of the Project Liaison Committee:
B175: (a) | C175: Project Liaison Officer - CLO | D175: Prov sum | E175: 1.00 | F175: 68,000.00 | G175: =E175*F175 -> 68,000.00
B177: (b) | C177: Project Liaison Committee - Sitting allowance | D177: Prov sum | E177: 1.00 | F177: =8*6*400 -> 19,200.00 | G177: =E177*F177 -> 19,200.00
B179: (d) | C179: Contractor's handling costs, profit and all other charges in
C180: respects of Subitems B12.03(a) and (b)
B182: (i) Liaison Officer | C182: (i) Project Liaison Officer | D182: % | E182: =F175 -> 68,000.00 | G182: =E182*F182 -> 0
B184: (ii) Project Liaison Committee | C184: (ii) Project Liaison Committee | D184: % | E184: =F177 -> 19,200.00 | G184: =E184*F184 -> 0
A186: B12.15 | B186: Protection, removal, realignment and replacement of
B187: services including boundaries
B189: (a) | C189: Utility services
C191: (i) Relocation of services and payments to service owners | D191: Prov sum | E191: 1.00 | F191: 10,000.00 | G191: =E191*F191 -> 10,000.00
C193: (ii) Removal and re-erction of fences | D193: Prov sum | E193: 1.00 | F193: 15,000.00 | G193: =E193*F193 -> 15,000.00
C195: (iii) Handling cost and profit on items (i) and (ii) | D195: % | E195: =F191+F193 -> 25,000.00 | G195: =E195*F195 -> 0
A197: B12.16 | B197: Provision of survey equipment to be used by the Engineer or
B198: his Representatives on site.
C200: (i) Automatic level | D200: No | E200: 1.00 | G200: =E200*F200 -> 0
C202: (ii) Staff | D202: No | E202: 1.00 | G202: =E202*F202 -> 0
C204: (iii) Survey Assistant | D204: No | E204: 1.00 | G204: =E204*F204 -> 0
C206: (iv) Measuring wheel | D206: No | E206: 1.00 | G206: =E206*F206 -> 0
C208: (v) 30m measuring tape | D208: No | E208: 1.00 | G208: =E208*F208 -> 0
A210: B12.17 | B210: Provision of Engineer's services to the Contractor on site
C212: (i) Survey | D212: Prov sum | E212: 1.00 | F212: 45,000.00 | G212: =E212*F212 -> 45,000.00
C214: (ii) Geotechnical and quality control | D214: Prov sum | E214: 1.00 | F214: 65,000.00 | G214: =E214*F214 -> 65,000.00
C216: (iii) Handling cost and profit on items (i) and (ii) | D216: % | E216: =F212+F214 -> 110,000.00 | G216: =E216*F216 -> 0
A218: B12.18 | B218: Construction nameboard as per attached drawings | D218: No | E218: 2.00 | G218: =E218*F218 -> 0
A220: B12.19 | B220: Nominated Sub-Contractors (Provisional)
B222: Overhead, markup, charges and profit on | C222: (i) Appointment of nominated subcontractors | D222: item | F222: 1,000,000.00
C224: (ii) Management and supervision of nominated subcontractors | D224: %
A249: 1200 | C249: TOTAL CARRIED TO SUMMARY | G249: =SUM(G170:G245) -> 982,200.00

Sheet 1300
A2: ='1200'!A1:G1 -> RECONSTRUCTION OF FRISGEWAAGT INTERNAL ROADS AND STORMWATER PHASE 1 - WARD 6
A3: SCHEDULE A : GENERAL
A4: SECTION 1300
A5: CONTRACTOR'S ESTABLISHMENT ON SITE AND GENERAL OBLIGATIONS
A7: ITEM | B7: DESCRIPTION | C7: UNIT | D7: QTY | E7: RATE | F7: AMOUNT
B9: CONTRACTOR'S ESTABLISHMENT ON SITE AND
B10: GENERAL OBLIGATIONS
A12: 13.01 | B12: Contractor's General Obligations:
B14: (a) Fixed obligations for the duration of contract | C14: Lump sum | D14: 1.00 | F14: =D14*E14 -> 0
B16: (b) Value-related obligations for the duration of contract | C16: Lump sum | D16: 1.00 | F16: =D16*E16 -> 0
B18: (c) Time-related obligations | C18: Month | D18: 8.00 | F18: =D18*E18 -> 0
B20: NB: The combined Total Tendered Sum for subitems (a),
B21: (b) & ( c) shall not exceed 15% of the Tendered Sum
A23: 13.02 | B23: Sub Contractors' General Obligations:
B25: (a) Fixed obligations for the duration of contract | C25: Prov sum | D25: 0 | E25: 80,000.00
B27: (b) Time-related obligations | C27: Prov sum | D27: 0 | E27: 15,000.00
B29: (c) Contractor's handling cost and Profit in respect of subitem
B30: 13.02 (a) and (b) | C30: % | D30: 0 | F30: =D30*E30 -> 0
A32: A1303 | B32: Management of the works
B34: (a) The contractor to maintain full time supervision of the
B35: works for the duration of the contract. | C35: Lump sum | D35: 1.00 | F35: =D35*E35 -> 0
A73: 1300 | B73: TOTAL CARRIED TO SUMMARY | F73: =SUM(F14:F68) -> 0

Sheet 1400
A1: ='1300'!A2:F2 -> RECONSTRUCTION OF FRISGEWAAGT INTERNAL ROADS AND STORMWATER PHASE 1 - WARD 6
A2: SCHEDULE A : GENERAL
A3: SECTION 1400
A4: HOUSING, OFFICES AND LABORATORIES FOR THE ENGINEER'S SITE PERSONNEL
A6: ITEM | B6: DESCRIPTION | C6: UNIT | D6: QTY | E6: RATE | F6: AMOUNT
B8: HOUSING, OFFICES AND LABORATORIES
A10: 14.01 | B10: Office and laboratory accommodation:
B12: (a) Offices (interior floor space only) | C12: m² | D12: 20.00 | F12: =D12*E12 -> 0
B14: (b) Venue for site meetings | C14: m² | D14: 40.00 | F14: =D14*E14 -> 0
A16: LI | B16: (c) Ablution units | C16: m² | D16: 16.00 | F16: =D16*E16 -> 0
A18: LI | B18: (d) Stores | C18: m² | D18: 16.00 | F18: =D18*E18 -> 0
A20: 14.02 | B20: Office and laboratory furniture:
B22: (a) Chairs | C22: number | D22: 20.00 | F22: =D22*E22 -> 0
B24: (b) Delete "Draughtman's stools" and insert
B25: "chairs used during drawings review" | C25: number | D25: 2.00 | F25: =D25*E25 -> 0
B27: (c) Delete "High chairs for laboratory" and insert
B28: "drawings rag or stand with five holding rails" | C28: number | D28: 2.00 | F28: =D28*E28 -> 0
B30: (d) Desks, complete with drawers and locks | C30: number | D30: 3.00 | F30: =D30*E30 -> 0
B32: (e) Drawing tables for drawings review | C32: number | D32: 3.00 | F32: =D32*E32 -> 0
B34: (f) Conference tables | C34: number | D34: 2.00 | F34: =D34*E34 -> 0
A36: 14.03 | B36: Office and laboratory fittings, installations
B37: and equipment:
B39: (a) Items measured by number:
B41: (i) 220/250 volt power points | C41: number | D41: 2.00 | F41: =D41*E41 -> 0
B43: (ii) 400/231 volt 3-phase power points | C43: number | D43: 1.00 | F43: =D43*E43 -> 0
B45: (iii) Double 80 watt fluorescent-light fittings
B46: complete with ballast and tubes | C46: number | D46: 2.00 | F46: =D46*E46 -> 0
B48: (iv) Wash-hand basins complete with taps
B49: and drains | C49: number | D49: 1.00 | F49: =D49*E49 -> 0
B51: (v) Fire extinguishers, 9,0 kg all purpose
B52: dry powder type, complete, mounted
B53: on wall with brackets | C53: number | D53: 2.00 | F53: =D53*E53 -> 0
B55: (vi) Air-conditioning units with 2,2 kW
B56: minimum capacity, mounted and with
B57: own power connection | C57: number | D57: 2.00 | F57: =D57*E57 -> 0
B59: (vii) Heater, space heating type, minimum
B60: capacity 1,5 kW | C60: number | D60: 2.00 | F60: =D60*E60 -> 0
B62: (viii) General-purpose steel cupboards with
B63: shelves | C63: number | D63: 2.00 | F63: =D63*E63 -> 0
B65: (ix) Steel filing cabinets with drawers | C65: number | D65: 2.00 | F65: =D65*E65 -> 0
B67: (x) Refrigirators | C67: number | D67: 1.00 | F67: =D67*E67 -> 0
B69: (b) Prime-cost items and items paid for in a
B70: lump sum:
B72: (i) The provision of a direct independent
B73: telephone line/cellphone for the Engineer,
B74: including the cost of calls in connection
B75: with contract administration and telephone
B76: rental | C76: PC sum | D76: 1.00 | E76: =8*3800 -> 30,400.00 | F76: =D76*E76 -> 30,400.00
B78: (ii) Handling costs and profit in respect of
B79: subitem 14.03(b)(i) above | C79: % | D79: =E76 -> 30,400.00 | F79: =D79*E79 -> 0
B81: (iii) The provision of fax or e-mail facilities as
B82: specified | C82: PC sum | D82: 1.00 | E82: 8,000.00 | F82: =D82*E82 -> 8,000.00
B84: (iv) Handling costs and profit in respect of
B85: subitem 14.03(b)(iii) above | C85: % | D85: =E82 -> 8,000.00 | F85: =D85*E85 -> 0
A87: 1400 | B87: TOTAL CARRIED FORWARD | F87: =SUM(F12:F85) -> 38,400.00
A89: ITEM | B89: DESCRIPTION | C89: UNIT | D89: QTY | E89: RATE | F89: AMOUNT
B90: TOTAL BROUGHT FORWARD | F90: =F87 -> 38,400.00
B92: (c) Items measured by area:
B94: (i) Notice boards as specified | C94: m² | D94: 1.00 | F94: =D94*E94 -> 0
A96: 14.04 | B96: Car-ports
A98: LI | B98: (i) Car ports as specified, at offices and
B99: laboratory buildings, COLTO 1998 Edition
B100: (strictly for the use by the Engineer and his
B101: staff together with the Employer; the
B102: Contractor shall provide his own parking at
B103: his costs" | C103: number | D103: 3.00 | F103: =D103*E103 -> 0
A105: 14.05 | B105: Housing for labourers - Provisional
B107: (a) Allow the provisional amount for housing of
B108: labourers as specified in COLTO, 1998 Edition | C108: Lump sum | D108: 1.00 | F108: =D108*E108 -> 0
B110: (b) Ablution unit as specified including provision
B111: of wash basins or movable wheel ablution
B112: facilities for male and female. The rate shall
B113: include maintenance and disinfection chemicals. | C113: number | D113: 4.00 | F113: =D113*E113 -> 0
A115: 14.08 | B115: Services:
B116: The provision of water, electricity, low pressure
B117: gas, sewerage, septic tanks, sewage and rubbish
B118: removal, cleaning sevices, maintenance and
B119: repairs, all as specified in COLTO, 1998 Edition
B120: clause 1404 including the construction and
B121: maintenance of the access roads, footpaths, etc.
B123: (a) Services at offices and laboratories:
B125: (i) Fixed costs | C125: Lump sum | D125: 1.00 | F125: =D125*E125 -> 0
B127: (ii) Running costs | C127: month | D127: ='1300'!D18 -> 8.00 | F127: =D127*E127 -> 0
B129: (d) Allow the provision amount for labourers'
B130: accomodation services on site, eating areas
B132: (i) Fixed costs | C132: Lump sum | D132: 1.00 | F132: =D132*E132 -> 0
B134: (ii) Running costs | C134: month | D134: =D127 -> 8.00 | F134: =D134*E134 -> 0
A136: 14.10 | B136: Provision of photostat facilities
B137: Delete "provision of photostat facilities" and insert
B138: the following provisional items which shall remain
B139: the property of the Employer on project completion:
B141: (a). Allow amount of R 25 000, 00 for a A3/A4 table
B142: top toner laser, HP colour printer with scan. | C142: Prov sum | D142: 1.00 | E142: 25,000.00 | F142: =D142*E142 -> 25,000.00
B144: (b). Allow amount of R 40 000. 00 for NXH98EA.001
B145: Acer swift 7 laptop, Win 11 Pro, SF714-5ZT-
B146: 77KA or HP Spectre X360, 15,6inch, 4K VHD
B147: touch i7 - 10750H. | C147: Prov sum | D147: 1.00 | E147: 40,000.00 | F147: =D147*E147 -> 40,000.00
B149: (c). Allow R 20 000, 00 for Acer swift 5 core i7
B150: win 11 notebook | C150: Prov sum | D150: 1.00 | E150: 20,000.00 | F150: =D150*E150 -> 20,000.00
B152: (d). Handling costs and profit in respect of
B153: subitems 14.10 (a), (b, and (c) above | C153: % | D153: =SUM(E142+E147+E150) -> 85,000.00 | F153: =D153*E153 -> 0
A155: 1400 | B155: TOTAL CARRIED TO SUMMARY | F155: =SUM(F90:F153) -> 123,400.00

Sheet 1500
A1: ='1400'!A1:F1 -> RECONSTRUCTION OF FRISGEWAAGT INTERNAL ROADS AND STORMWATER PHASE 1 - WARD 6
A2: SCHEDULE B: ROADWORKS
A3: SECTION 1500
A4: ACCOMMODATION OF TRAFFIC
A6: ITEM | B6: DESCRIPTION | C6: UNIT | D6: QUANTITY | E6: RATE | F6: AMOUNT
B8: ACCOMMODATION OF TRAFFIC
A10: 15.01 | B10: Accommodating traffic and maintaining
B11: temporary deviations | C11: km | D11: =3.9 -> 3.90 | F11: =D11*E11 -> 0
A13: 15.02 | B13: Earthworks for temporary deviations:
B15: (a) Shaping of temporary deviations | C15: km | D15: =D11 -> 3.90 | F15: =D15*E15 -> 0
A17: 15.03 | B17: Temporary traffic-control facilities:
B19: (a) Flagmen | C19: man-day | D19: =8*4*5*4 -> 640.00 | F19: =D19*E19 -> 0
B21: (b) Portable STOP and GO-RY signs | C21: number | D21: 8.00 | F21: =D21*E21 -> 0
B23: (e) Road signs, R- and TR-series, 900mm | C23: number | D23: 8.00 | F23: =D23*E23 -> 0
B25: (f) Road signs, TW-series, 900mm side | C25: number | D25: 4.00 | F25: =D25*E25 -> 0
B27: (g) Road signs, STW-, DTG-, TGS- and TG-
B28: series (excluding delineators and barricades) | C28: m² | D28: 20.00 | F28: =D28*E28 -> 0
B30: (i) Movable barricade/road sign combination | C30: number | D30: 4.00 | F30: =D30*E30 -> 0
B32: (j) Traffic cones, (750mm high) | C32: number | D32: 30.00 | F32: =D32*E32 -> 0
A34: 15.04 | B34: Relocation of traffic-control facilities | C34: Lump sum | D34: 1.00 | F34: =D34*E34 -> 0
A36: 15.06 | B36: Watering of temporary deviations | C36: kilolitre | D36: 2,000.00 | F36: =D36*E36 -> 0
A38: 15.07 | B38: Blading by road grader of:
B40: (a) Temporary deviations | C40: km-pass | D40: 180.00 | F40: =D40*E40 -> 0
B42: (b) Existing roads used as temporary deviations | C42: km-pass | D42: 110.00 | F42: =D42*E42 -> 0
A67: 1500 | B67: TOTAL CARRIED TO SUMMARY | F67: =SUM(F11:F65) -> 0

Sheet 1700
A1: ='1500'!A1:F1 -> RECONSTRUCTION OF FRISGEWAAGT INTERNAL ROADS AND STORMWATER PHASE 1 - WARD 6
A2: SCHEDULE B : ROADWORKS
A3: SECTION 1700
A4: CLEARING AND GRUBBING
A6: ITEM | B6: DESCRIPTION | C6: UNIT | D6: QUANTITY | E6: RATE | F6: AMOUNT
B8: CLEARING AND GRUBBING
B9: The Contractor must provide rates on all items,
B10: should the Contractor not provide a rate for some
B11: of items, and is instructed to utilize such, no
B12: payment shall be made.
B14: NOTE: Provide rates for all items below
A16: 17.01 | B16: Clearing and grubbing of:
B18: (a) Normal areas
B20: (ii) In borrow areas | C20: ha | D20: 1.00 | F20: =D20*E20 -> 0
A22: 17.02 | B22: Removal and grubbing of large trees and
B23: tree stumps:
B25: (a) Girth exceeding 1 m up to and including 2 m | C25: number | D25: 1.00 | F25: =D25*E25 -> 0
B27: (b) Girth exceeding 2m up to and including 3m | C27: number | D27: 0 | F27: =D27*E27 -> 0
A29: 17.03 | B29: Re-clearing of surfaces (on written instruction of
B30: the Engineer Only) | C30: ha | D30: 1.00 | F30: =D30*E30 -> 0
A32: 17.04 | B32: Clearing and grubbing at inlets and outlets
B33: of hydraulic structures | C33: m2 | D33: 4.00 | F33: =D33*E33 -> 0
A35: 17.05 | B35: Cleaning out of Hydraulic structures
B37: (a) Pipes with internal diameter up to and including
B38: 750mm | C38: m3 | D38: 0 | F38: =D38*E38 -> 0
B40: (b) Pipes with internal diameter up to and
B41: exceeding 750mm | C41: m3 | D41: 0 | F41: =D41*E41 -> 0
B43: (c) Box culvets up to and including 1.5m vertical
B44: dimensions | C44: m3 | D44: 4.00 | F44: =D44*E44 -> 0
B46: (c) Box culvets up to and exceeding 1.5m vertical
B47: dimensions | C47: m3 | D47: 0 | F47: =D47*E47 -> 0
A65: 1700 | B65: TOTAL CARRIED TO SUMMARY | F65: =SUM(F20:F47) -> 0

Sheet 2100
A1: ='1700'!A1:F1 -> RECONSTRUCTION OF FRISGEWAAGT INTERNAL ROADS AND STORMWATER PHASE 1 - WARD 6
A2: SCHEDULE B : ROADWORKS
A3: SECTION 2100
A4: DRAINS
A6: ITEM | B6: DESCRIPTION | C6: UNIT | D6: QUANTITY | E6: RATE | F6: AMOUNT
B8: DRAINS
B9: The Contractor must provide rates on all items,
B10: should the Contractor not provide a rate for some
B11: of items, and is instructed to utilize such, no
B12: payment shall be made.
A14: 21.01 | B14: Excavation for open drains:
B16: (a) Excavating soft material situated within the
B17: following depth ranges below the surface
B18: level:
A20: LI | B20: (i) 0 m up to 1,5 m | C20: m³ | D20: 890.00 | F20: =SUM(D20*E20) -> 0
B22: (b) Extra over subitem 21.01(a) for excavation
B23: in hard material, irrespective of depth | C23: m³ | D23: 60.00 | F23: =SUM(D23*E23) -> 0
A25: 21.02 | B25: Clearing and shaping open drains | C25: m³ | D25: 250.00 | F25: =SUM(D25*E25) -> 0
A26: LI
A60: 2100 | B60: TOTAL CARRIED TO SUMMARY | F60: =SUM(F17:F28) -> 0

Sheet 2200
A1: ='2100'!A1:F1 -> RECONSTRUCTION OF FRISGEWAAGT INTERNAL ROADS AND STORMWATER PHASE 1 - WARD 6
A2: SCHEDULE B : ROADWORKS
A3: SECTION 2200
A4: PREFABRICATED CULVERTS
A6: ITEM | B6: DESCRIPTION | E6: UNIT | F6: QUANTITY | G6: RATE | H6: AMOUNT
B8: PREFABRICATED CULVERTS
B9: The Contractor must provide rates on all items,
B10: should the Contractor not provide a rate for some
B11: of items, and is instructed to utilize such, no
B12: payment shall be made.
B14: NOTE: Rate only items, Provide all rates
A16: 22.01 | B16: Excavation:
B18: (a) | C18: Excavating soft material situated within the
C19: following depth ranges below the surface
C20: level:
A22: LI | C22: (i) | D22: 0 m up to 1,5 m | E22: m³ | F22: 180.00 | H22: =F22*G22 -> 0
B24: (b) | C24: Extra over subitem 22.01(a) for excavation
C25: in hard material, irrespective of depth | E25: m³ | F25: 40.00 | H25: =F25*G25 -> 0
A27: 22.02 | B27: Backfilling:
A29: LI | B29: (a) | C29: Using the excavated material | E29: m³ | F29: 60.00 | H29: =F29*G29 -> 0
A31: LI | B31: (c) | C31: Extra over subitems 22.02(a) for soil cement
C32: backfilling containing 3% cement* | E32: m³ | F32: 10.00 | H32: =F32*G32 -> 0
A34: 22.03 | B34: Concrete pipe culverts:
B36: (a) | C36: On class A bedding:
A38: LI | C38: (i) | D38: 600mm dia 75D | E38: m | F38: 40.00 | H38: =F38*G38 -> 0
A40: LI | C40: (ii) | D40: 675mm dia 75D | E40: m | F40: 40.00 | H40: =F40*G40 -> 0
A42: 22.05 | B42: Portal and rectangular culverts:
B44: (a) | C44: Complete with prefabricated floor slabs
A46: LI | C46: (i) | D46: 600mm X 450mm class 100s | E46: m | F46: 100.00 | H46: =F46*G46 -> 0
A48: LI | C48: (ii) | D48: 900mm X 450mm class 100s | E48: m | F48: 12.00 | H48: =F48*G48 -> 0
A69: 2200 | B69: TOTAL CARRIED TO SUMMARY | H69: =SUM(H21:H66) -> 0

Sheet 2300
A1: ='2200 '!A1:H1 -> RECONSTRUCTION OF FRISGEWAAGT INTERNAL ROADS AND STORMWATER PHASE 1 - WARD 6
A2: SCHEDULE B : ROADWORKS
A3: SECTION 2300
A4: CONCRETE KERBING
A6: ITEM | B6: DESCRIPTION | C6: UNIT | D6: QUANTITY | E6: RATE | F6: AMOUNT
B8: CONCRETE KERBING, CONCRETE
B9: CHANNELLING, CHUTES AND DOWNPIPES,
B10: AND CONCRETE LININGS FOR OPEN DRAINS
B11: The Contractor must provide rates on all items,
B12: should the Contractor not provide a rate for some
B13: of items, and is instructed to utilize such, no
B14: payment shall be made.
A16: 23.02 | B16: Concrete kerbing-channelling combination
A18: LI | B18: (a) 300mm x 300mm 30Mpa insitu edgebeam | C18: m | D18: 60.00 | F18: =D18*E18 -> 0
A20: LI | B20: (b) Figure 16 heavyduty edgebeam | C20: m | D20: 0 | F20: =D20*E20 -> 0
A22: LI | B22: (c) Figure 8c heavy duty kerb mountable with
B23: castle bottom including 25Mpa haunching | C23: m | D23: =3900*2 -> 7,800.00 | F23: =D23*E23 -> 0
A25: 23.07 | B25: Trimming of excavations for concrete-lined
B26: open drains:
A28: LI | B28: (a) In soft material | C28: m² | D28: 320.00 | F28: =D28*E28 -> 0
A30: 23.08 | B30: Concrete lining for open drains:
A32: LI | B32: (a) Cast in situ class concrete 30/19
B33: lining in V drains | C33: m³ | D33: 420.00 | F33: =D33*E33 -> 0
A35: LI | B35: (b) Class U2 surface finish to cast in situ
B36: concrete in V drains | C36: m² | D36: 280.00 | F36: =D36*E36 -> 0
A64: 2300 | B64: TOTAL CARRIED TO SUMMARY | F64: =SUM(F16:F61) -> 0

Sheet 3100
A1: ='2300'!A1:F1 -> RECONSTRUCTION OF FRISGEWAAGT INTERNAL ROADS AND STORMWATER PHASE 1 - WARD 6
A2: SCHEDULE B : ROADWORKS
A3: SECTION 3100
A4: BORROW MATERIALS
A6: ITEM | B6: DESCRIPTION | C6: UNIT | D6: QUANTITY | E6: RATE | F6: AMOUNT
B8: BORROW MATERIALS
B9: The Contractor must provide rates on all items,
B10: should the Contractor not provide a rate for some
B11: of items, and is instructed to utilize such, no
B12: payment shall be made.
B14: NOTE: Price must include haulage
A16: 31.01 | B16: Excess overburden in borrow pits for
B17: obtaining crushed stone for pavement layers
B19: (a) In all depths but not exceeding 2m and types | C19: m³ | D19: =0.45*3900*6 -> 10,530.00 | F19: =D19*E19 -> 0
A21: 31.03 | B21: Finishing-off borrow areas in:
B23: (a) Soft material | C23: ha | D23: =D19/5000 -> 2.11 | F23: =D23*E23 -> 0
A25: 31.04 | B25: Compensation to Landowners
B27: (a) Prime Cost sum for compensation to
B28: landowners | C28: PC sum | D28: 1.00 | E28: 140,000.00 | F28: =D28*E28 -> 140,000.00
B30: (b) Handling cost and profit in respect of sub-item
B31: 31.04(a) above | C31: % | D31: =E28 -> 140,000.00 | F31: =D31*E31 -> 0
A62: 3100 | B62: TOTAL CARRIED TO SUMMARY | F62: =SUM(F18:F61) -> 140,000.00

Sheet 3200
A1: ='3100'!A1:F1 -> RECONSTRUCTION OF FRISGEWAAGT INTERNAL ROADS AND STORMWATER PHASE 1 - WARD 6
A2: SCHEDULE B : ROADWORKS
A3: SECTION 3200
A4: MATERIAL STOCKPILE
A6: ITEM | B6: DESCRIPTION | C6: UNIT | D6: QUANTITY | E6: RATE | F6: AMOUNT
B8: SELECTION, STOCKPILING AND BREAKING-
B9: DOWN THE MATERIAL FROM BORROW PITS,
B10: CUTTINGS AND EXISTING PAVEMENT
B11: LAYERS, AND PLACING AND COMPACTING
B12: THE GRAVEL LAYERS
B13: The Contractor must provide rates on all items,
B14: should the Contractor not provide a rate for some
B15: of items, and is instructed to utilize such, no
B16: payment shall be made.
B18: NOTE: Price must include haulage
A20: 32.06 | B20: Stockpiling of material | C20: m³ | D20: ='3100'!D19 -> 10,530.00 | F20: =D20*E20 -> 0
A58: 3200 | B58: TOTAL CARRIED TO SUMMARY | F58: =SUM(F20:F55) -> 0

Sheet 3300
A1: ='3200'!A1:F1 -> RECONSTRUCTION OF FRISGEWAAGT INTERNAL ROADS AND STORMWATER PHASE 1 - WARD 6
A2: SCHEDULE B : ROADWORKS
A3: SECTION 3300
A4: MASS EARTHWORKS
A6: ITEM | B6: DESCRIPTION | C6: UNIT | D6: QUANTITY | E6: RATE | F6: AMOUNT
B8: MASS EARTHWORKS
B9: The Contractor must provide rates on all items,
B10: should the Contractor not provide a rate for some
B11: of items, and is instructed to utilize such, no
B12: payment shall be made.
B14: NOTE: Price must include haulage
A16: 33.04 | B16: Cut to spoil, including unlimited free-haulage
B17: material obtained from:
B19: (a) Soft excavation | C19: m³ | D19: ='3200'!D20 -> 10,530.00 | F19: =D19*E19 -> 0
A21: 33.09 | B21: Material bladed to windrow | C21: m³ | D21: =D19*2% -> 210.60 | F21: =D21*E21 -> 0
A23: 33.10 | B23: Roadbed preparation and the compaction of
B24: material:
B26: (b) Compaction to 93% of modified AASHTO
B27: density | C27: m³ | D27: =3900*5.6*0.15 -> 3,276.00 | F27: =D27*E27 -> 0
A29: 33.11 | B29: Three roller passes compaction
B31: (a) Vibratory roller | C31: m2 | D31: =3900*6 -> 23,400.00 | F31: =D31*E31 -> 0
A33: 33(a) | B33: Shallow milling (150mm) | C33: m³ | D33: 0 | F33: =D33*E33 -> 0
A35: 33(b) | B35: Deep milling (300mm) | C35: m³ | D35: 0 | F35: =D35*E35 -> 0
A61: 3300 | B61: TOTAL CARRIED TO SUMMARY | F61: =SUM(F17:F58) -> 0

Sheet 3400
A1: ='3300'!A1:F1 -> RECONSTRUCTION OF FRISGEWAAGT INTERNAL ROADS AND STORMWATER PHASE 1 - WARD 6
A2: SCHEDULE B : ROADWORKS
A3: SECTION 3400
A4: PAVEMENT LAYERS OF GRAVEL MATERIAL
A6: ITEM | B6: DESCRIPTION | C6: UNIT | D6: QUANTITY | E6: RATE | F6: AMOUNT
B8: PAVEMENT LAYERS OF GRAVEL MATERIAL
B9: The Contractor must provide rates on all items, should the
B10: Contractor not provide a rate for some of items, and is instructed
B11: instructed to utilize such, no payment shall be made
B13: NOTE: Price must include haulage
A15: 34.01 | B15: Pavement layers constructed from gravel take from cut or
B16: borrow including free-haul up to 1,0km:
B18: (a) Gravel selected layer compacted to:
B20: (i) 95% of modified AASHTO density for a compacted
B21: layer thickness of 150 mm | C21: m³ | D21: ='3300'!D27 -> 3,276.00 | F21: =D21*E21 -> 0
B23: (c) G6/G7 gravel subbase (unstabilized material) compacted to:
B25: (i) 97% of modified AASHTO density for a compacted layer
B26: thickness of 150 mm | C26: m³ | D26: =D21 -> 3,276.00 | F26: =D26*E26 -> 0
B28: (f) G6/G7 Gravel base (C3 -stabilized material) compacted to:
B30: (ii) 98% of modified AASHTO density for a compacted layer
B31: thickness of 150 mm | C31: m³ | D31: =D26 -> 3,276.00 | F31: =D31*E31 -> 0
A74: 3400 | B74: TOTAL CARRIED TO SUMMARY | F74: =SUM(F21:F69) -> 0

Sheet 3500
A1: ='3400 '!A1:F1 -> RECONSTRUCTION OF FRISGEWAAGT INTERNAL ROADS AND STORMWATER PHASE 1 - WARD 6
A2: SCHEDULE B : ROADWORKS
A3: SECTION 3500
A4: STABILIZATION
A6: ITEM | B6: DESCRIPTION | C6: UNIT | D6: QUANTITY | E6: RATE | F6: AMOUNT
B8: STABILIZATION
B9: The Contractor must provide rates on all items,
B10: should the Contractor not provide a rate for some
B11: of items, and is instructed to utilize such, no
B12: payment shall be made.
A14: 35.01 | B14: Chemical stabilization extra over unstabilized
B15: compacted layers:
B17: (b) Gravel base 150 mm thick | C17: m³ | D17: ='3400 '!D31 -> 3,276.00 | F17: =D17*E17 -> 0
A19: 35.02 | B19: Chemical stabilizing agent:
B21: (a) Ordinary Portland cement: Base | C21: t | D21: ='3400 '!D31*2082*3%/1000 -> 204.62 | F21: =D21*E21 -> 0
B22: (i) Shall comply with the requirements of SABS
B23: 471. Rapid hardening portlant cement shall
B24: not be used.
A26: 35.04 | B26: Provision and application of water for curing | C26: kl | D26: 2,600.00 | F26: =D26*E26 -> 0
A56: 3500 | B56: TOTAL CARRIED TO SUMMARY | F56: =SUM(F17:F52) -> 0

Sheet 5100
A1: ='3500'!A1:F1 -> RECONSTRUCTION OF FRISGEWAAGT INTERNAL ROADS AND STORMWATER PHASE 1 - WARD 6
A2: SCHEDULE B : ROADWORKS
A3: SECTION 5100
A4: PITCHING, STONEWORK AND PROTECTION AGAINST EROSION
A6: ITEM | B6: DESCRIPTION | C6: UNIT | D6: QUANTITY | E6: RATE | F6: AMOUNT
B8: PITCHING, STONEWORK AND PROTECTION
B9: AGAINST EROSION
B10: The Contractor must provide rates on all items,
B11: should the Contractor not provide a rate for some
B12: of items, and is instructed to utilize such, no
B13: payment shall be made.
B15: NOTE: Rate only, provide rates
A17: 51.01 | B17: Stone pitching:
A19: LI | B19: (a) Plain pitching
B21: (i) Method 1 | C21: m² | D21: 100.00 | F21: =D21*E21 -> 0
B23: (ii) Method 2 | C23: m² | D23: 100.00 | F23: =D23*E23 -> 0
A25: LI | B25: (b) Grouted stone pitching | C25: m² | D25: 300.00 | F25: =D25*E25 -> 0
A62: 5100 | B62: TOTAL CARRIED TO SUMMARY | F62: =SUM(F21:F54) -> 0

Sheet 5400
A1: ='5100'!A1:F1 -> RECONSTRUCTION OF FRISGEWAAGT INTERNAL ROADS AND STORMWATER PHASE 1 - WARD 6
A2: SCHEDULE B : ROADWORKS
A3: SECTION 5400
A4: GUARDRAILS
A6: ITEM | B6: DESCRIPTION | C6: UNIT | D6: QUANTITY | E6: RATE | F6: AMOUNT
B8: GUARDRAILS
B9: The Contractor must provide rates on all items,
B10: should the Contractor not provide a rate for some
B11: of items, and is instructed to utilize such, no
B12: payment shall be made.
B14: NOTE: Rate only, provide rates
A16: 54.01 | B16: Guardrails on timber posts:
A18: LI | B18: (a) Galvanized | C18: m | D18: 0 | F18: =D18*E18 -> 0
B20: (b) Painted | C20: m | D20: 0 | F20: =D20*E20 -> 0
A22: 54.02 | B22: End treatments:
A24: LI | B24: (a) End wings | C24: number | D24: 0 | F24: =D24*E24 -> 0
A26: LI | B26: (b) Bull noses | C26: number | D26: 0 | F26: =D26*E26 -> 0
A28: LI | B28: (c) End treatments in accordance with the
B29: Drawings where single guardrail sections are
B30: used | C30: number | D30: 0 | F30: =D30*E30 -> 0
A32: LI | B32: (d) End treatments in accordance with the
B33: Drawings where double guardrail sections
B34: are used | C34: number | D34: 0 | F34: =D34*E34 -> 0
A36: 54.03 | B36: Additional guardrail posts:
A38: LI | B38: (a) Timber | C38: number | D38: 0 | F38: =D38*E38 -> 0
A40: 54.04 | B40: Reflective plates | C40: number | D40: 0 | F40: =D40*E40 -> 0
A41: LI
A64: 5400 | B64: TOTAL CARRIED TO SUMMARY | F64: =SUM(F18:F60) -> 0

Sheet 5600
A1: ='5400'!A1:F1 -> RECONSTRUCTION OF FRISGEWAAGT INTERNAL ROADS AND STORMWATER PHASE 1 - WARD 6
A2: SCHEDULE B : ROADWORKS
A3: SECTION 5600
A4: ROAD SIGNS
A6: ITEM | B6: DESCRIPTION | C6: UNIT | D6: QUANTITY | E6: RATE | F6: AMOUNT
B8: ROAD SIGNS
B9: The Contractor must provide rates on all items, should the
B10: Contractor not provide a rate for some of items, and is
B11: instructed to utilize such, no payment shall be made.
A13: A56,11 | B13: Regulatory Signs and Warning Signs
B15: NOTE: Price to include excavation in all class of material,
B16: backfill, compaction and material treatment
A18: LI | B18: (a) Supply and install a complete "STOP SIGNS" with galvanized
B19: supports posts including bolds and nuts. The galvanized
B20: posts should be engraved "TLM/005/2022/23" while stop
B21: signs must reflect the manufacture date and
B22: "TLM005/2022/23" at the back. Ref: COLTO and SANS1200. | C22: No | D22: 8.00 | F22: =D22*E22 -> 0
A24: LI | B24: (b) Supply and install a complete "YIELD SIGNS" with galvanized
B25: supports posts including bolds and nuts. The galvanized
B26: posts should be engraved "TLM/005/2022/23" while yield
B27: signs must reflect the manufacture date and
B28: "TLM/005/2022/23" at the back. | C28: No | D28: 8.00 | F28: =D28*E28 -> 0
A30: LI | B30: (c) Supply and install complete "200mm * 800mm HAZARD
B31: PLATES" with galvanized supports posts including bolds and
B32: nuts. The galvanized posts should be engraved
B33: "TLM/005/2022/23" while hazard signs must reflect the
B34: manufacture date and "TLM/005/2022/23" at the back. | C34: No | D34: 12.00 | F34: =D34*E34 -> 0
A68: 5600 | B68: TOTAL CARRIED TO SUMMARY | F68: =SUM(F22:F64) -> 0

Sheet 5700
A1: ='5600'!A1:F1 -> RECONSTRUCTION OF FRISGEWAAGT INTERNAL ROADS AND STORMWATER PHASE 1 - WARD 6
A2: SCHEDULE B : ROAD MARKINGS
A3: SECTION 5700
A4: ROAD MARKINGS
A6: ITEM | B6: DESCRIPTION | E6: UNIT | F6: QUANTITY | G6: RATE | H6: AMOUNT
B8: ROAD MARKINGS
B9: The Contractor must provide rates on all items, should the
B10: Contractor not provide a rate for some of items, and is
B11: instructed to utilize such, no payment shall be made.
A13: 57.02 | B13: Retro-reflective road-marking paint: Water based
B14: paint applied at 0.6 l/ m². (Paint to be approved by m²
B15: the Employer and the Engineer first with no
B16: additional costs or shop material sample compensation)
A18: LI | B18: (a) | C18: White lines (broken or unbroken):
C20: (i) | D20: 100 mm wide | E20: km | F20: =3.9 -> 3.90 | H20: =F20*G20 -> 0
C22: (iii) | D22: 200 mm wide | E22: km | F22: =3.9 -> 3.90 | H22: =F22*G22 -> 0
A24: LI | B24: (d) | C24: White lettering and symbols | E24: m² | F24: 12.00 | H24: =F24*G24 -> 0
A26: 57.06 | B26: Setting out and premarking the lines (excluding
B27: traffic-island markings, lettering and symbols). | E27: km | F27: =F20 -> 3.90 | H27: =F27*G27 -> 0
A29: 57.07 | B29: Re-establishing the painting unit at the end of
B30: the maintenance period | E30: lump sum | F30: 1.00 | H30: =F30*G30 -> 0
A66: 5700 | B66: TOTAL CARRIED TO SUMMARY | H66: =SUM(H20:H59) -> 0

Sheet 5900
A1: ='5700'!A1:H1 -> RECONSTRUCTION OF FRISGEWAAGT INTERNAL ROADS AND STORMWATER PHASE 1 - WARD 6
A2: SCHEDULE B : ROADWORKS
A3: SECTION 5900
A4: FINISHING THE ROAD AND ROAD RESERVE
A6: ITEM | B6: DESCRIPTION | C6: UNIT | D6: QUANTITY | E6: RATE | F6: AMOUNT
B8: FINISHING THE ROAD AND ROAD RESERVE
B9: AND TREATING OLD ROADS
B10: The Contractor must provide rates on all items,
B11: should the Contractor not provide a rate for some
B12: of items, and is instructed to utilize such, no
B13: payment shall be made.
A15: 59.01 | B15: Finishing the road and road reserve
B17: (b) Single carriageway road | C17: km | D17: =3.9*2 -> 7.80 | F17: =D17*E17 -> 0
A19: 59.02 | B19: Treatment of old roads and temporary
B20: deviations | C20: km | D20: =3.9*2 -> 7.80 | F20: =D20*E20 -> 0
A56: 5900 | B56: TOTAL CARRIED FORWARD TO SUMMARY | F56: =SUM(F16:F52) -> 0

Sheet 7300
A1: ='5900'!A1:F1 -> RECONSTRUCTION OF FRISGEWAAGT INTERNAL ROADS AND STORMWATER PHASE 1 - WARD 6
A2: SCHEDULE B : ROADWORKS
A3: SECTION 7300
A4: CONCRETE BLOCK PAVING FOR ROADS
A6: ITEM | B6: DESCRIPTION | C6: UNIT | D6: QUANTITY | E6: RATE | F6: AMOUNT
A8: 7300 | B8: CONCRETE BLOCK PAVING FOR ROADS (GREY)
B9: The Contractor must provide rates on all items,
B10: should the Contractor not provide a rate for some
B11: of items, and is instructed to utilize such, no
B12: payment shall be made.
A14: 73.01 | B14: Concrete block paving
A16: LI | B16: (a) 200mm x 100mm x 60mm, 30Mpa grey heavy duty
B17: interlocking paving laid in a herringbone pattern | C17: m² | D17: =3900*6 -> 23,400.00 | F17: =D17*E17 -> 0
A19: LI | B19: (c) 20mm bedding sand applied underneath bricks | C19: m² | D19: =D17 -> 23,400.00 | F19: =D19*E19 -> 0
A21: LI | B21: (d) Cemented locking sand broomed evenly | C21: m² | D21: =D19 -> 23,400.00 | F21: =D21*E21 -> 0
A23: 73.02 | B23: Cast in-situ concrete edge and intermediate
B24: beams
A26: LI | B26: (a) 200mm wide x 300mm deep, class 30/19
B27: concrete (measured elsewhere) | C27: m³ | D27: =0.2*0.3*6*25 -> 9.00 | F27: =D27*E27 -> 0
A29: 73.03 | B29: Provision of approved herbicides and ant
B30: poison | C30: litre | D30: =D19*2 -> 46,800.00 | F30: =D30*E30 -> 0
A32: 73.04 | B32: Construct Complete Speed Hump / Pedestrian
A33: LI | B33: crossing as per drawing, road markings and traffic
B34: sign measured elsewhere | C34: number | D34: 9.00 | F34: =D34*E34 -> 0
A62: 7300 | B62: TOTAL CARRIED TO SUMMARY | F62: =SUM(F17:F59) -> 0

Sheet 8100
A1: ='7300'!A1:F1 -> RECONSTRUCTION OF FRISGEWAAGT INTERNAL ROADS AND STORMWATER PHASE 1 - WARD 6
A2: SCHEDULE B : ROADWORKS
A3: SECTION 8100
A4: TESTING MATERIALS AND WORKMANSHIP
A6: ITEM | B6: DESCRIPTION | C6: UNIT | D6: QUANTITY | E6: RATE | F6: AMOUNT
B8: TESTING MATERIALS AND WORKMANSHIP
B9: The Contractor must provide rates on all items,
B10: should the Contractor not provide a rate for some
B11: of items, and is instructed to utilize such, no
B12: payment shall be made.
A14: 81.02 | B14: Other special tests requested by the
B15: Engineer:
B17: (a) Cost of testing | C17: PC sum | D17: 1.00 | E17: 100,000.00 | F17: =D17*E17 -> 100,000.00
B19: (b) Charge on provisional sum for
B20: overheads and profits | C20: % | D20: =E17 -> 100,000.00 | F20: =D20*E20 -> 0
A58: 8100 | B58: TOTAL CARRIED TO SUMMARY | F58: =SUM(F17:F53) -> 100,000.00

Sheet GENERAL SUMMARY
A1: ='8100'!A1:F1 -> RECONSTRUCTION OF FRISGEWAAGT INTERNAL ROADS AND STORMWATER PHASE 1 - WARD 6
A2: SUMMARY OF SCHEDULE OF QUANTITIES
A3: ITEM | B3: DESCRIPTION | C3: AMOUNT
B4: SUMMARY OF SCHEDULE A : GENERAL
A5: 1200 | B5: GENERAL REQUIREMENTS AND PROVISIONS | C5: ='1200'!G249 -> 982,200.00
A6: 1300 | B6: CONTRACTOR'S ESTABLISHMENT ON SITE AND GENERAL OBLIGATIONS | C6: ='1300'!F73 -> 0
A7: 1400 | B7: HOUSING, OFFICES AND LABORATORY FOR THE ENGINEER'S SITE PERSONNEL | C7: ='1400'!F155 -> 123,400.00
B8: SUB-TOTAL TO MAIN SUMMARY : | C8: =SUM(C5:C7) -> 1,105,600.00
B9: SUMMARY OF SCHEDULE B : ROADWORKS
A10: 1500 | B10: ACCOMMODATION OF TRAFFIC | C10: ='1500'!F67 -> 0
A11: 1700 | B11: CLEARING AND GRUBBING | C11: ='1700'!F65 -> 0
A12: 2100 | B12: DRAINS | C12: ='2100'!F60 -> 0
A13: 2200 | B13: PREFABRICATED CULVERTS | C13: ='2200 '!H69 -> 0
A14: 2300 | B14: CONCRETE KERBING | C14: ='2300'!F64 -> 0
A15: 3100 | B15: BORROW MATERIALS | C15: ='3100'!F62 -> 140,000.00
A16: 3200 | B16: MATERIAL STOCKPILE | C16: ='3200'!F58 -> 0
A17: 3300 | B17: MASS EARTHWORKS | C17: ='3300'!F61 -> 0
A18: 3400 | B18: PAVEMENT LAYERS OF GRAVEL MATERIAL | C18: ='3400 '!F74 -> 0
A19: 3500 | B19: STABILISATION | C19: ='3500'!F56 -> 0
A20: 5100 | B20: PITCHING, STONEWORK AND PROTECTION AGAINST EROSION | C20: ='5100'!F62 -> 0
A21: 5400 | B21: GUARDRAILS | C21: ='5400'!F64 -> 0
A22: 5600 | B22: ROAD SIGNS | C22: ='5600'!F68 -> 0
A23: 5700 | B23: ROAD MARKINGS | C23: ='5700'!H66 -> 0
A24: 5900 | B24: FINISHING THE ROAD AND ROAD RESERVE AND TREATMENT OF OLD ROADS | C24: ='5900'!F56 -> 0
A25: 7300 | B25: CONCRETE BLOCK PAVING FOR ROADS | C25: ='7300'!F62 -> 0
A26: 8100 | B26: TESTING MATERIALS AND WORKMANSHIP | C26: ='8100'!F58 -> 100,000.00
B27: SUB-TOTAL CARRIED FORWARD TO FINAL SUMMARY : | C27: =SUM(C10:C26) -> 240,000.00
A29: FINAL SUMMARY
A31: DESCRIPTION | C31: AMOUNT
A32: SCHEDULE A: GENERAL | C32: =C8 -> 1,105,600.00
A33: SCHEDULE B: ROADWORKS | C33: =C27 -> 240,000.00
A34: SUB-TOTAL 1 | C34: =C32+C33 -> 1,345,600.00
A35: ADD CONTINGENCIES @ 10% | C35: =C34*10% -> 134,560.00
A36: SUB-TOTAL 2 | C36: =C34+C35 -> 1,480,160.00
A37: ADD VALUE ADDED TAX (VAT) @ 15% | C37: =C36*15% -> 222,024.00
A38: SUB-TOTAL 3 | C38: =C36+C37 -> 1,702,184.00
A39: TOTAL TENDER SUM CARRIED TO THE FORM OF TENDER | C39: =C38 -> 1,702,184.00

Sheet SUMMARY
A2: ='GENERAL SUMMARY'!A1 -> RECONSTRUCTION OF FRISGEWAAGT INTERNAL ROADS AND STORMWATER PHASE 1 - WARD 6
A5: FINAL SUMMARY
A7: DESCRIPTION | C7: AMOUNT
A9: SCHEDULE A: GENERAL | B9: : | C9: ='GENERAL SUMMARY'!C8 -> 1,105,600.00
A11: SCHEDULE B: ROADWORKS | B11: : | C11: ='GENERAL SUMMARY'!C27 -> 240,000.00
A13: SUB-TOTAL 1 | B13: : | C13: =C9+C11 -> 1,345,600.00
A15: ADD CONTINGENCIES @ 10% | B15: : | C15: =C13*10% -> 134,560.00
A17: SUB-TOTAL 2 | B17: : | C17: =C13+C15 -> 1,480,160.00
A19: ADD VALUE ADDED TAX (VAT) @ 15% | C19: =C17*15% -> 222,024.00
A21: SUB-TOTAL 3 | B21: : | C21: =C17+C19 -> 1,702,184.00
A24: TOTAL TENDER SUM CARRIED TO THE FORM OF TENDER | B24: : | C24: =C21 -> 1,702,184.00
A26: TENDERER : ________________________________________________________________________
A29: NAME & SURNAME : _________________________________________________________________
A32: SIGNATURE : ___________________________ | B32: DATE : ___________________
